bitfinex/quotes_BTCUSD_20250813
["timestamp","ask_amount","ask_price","bid_price","bid_amount"]
[1755108096512,0.1001915,121660.0,121650.0,0.19071]
[1755108096720,0.5537647,121660.0,121650.0,0.19071]
[1755108097844,0.1001915,121660.0,121650.0,0.05575]
[1755108098048,0.1001915,121660.0,121650.0,0.19051]
[1755108098281,0.1001915,121660.0,121650.0,0.21022044]
[1755108098509,0.1001915,121660.0,121650.0,0.07546044]
[1755108098736,0.0991915,121660.0,121650.0,0.18959]
[1755108099126,0.0991915,121660.0,121650.0,0.19459]
[1755108100023,0.01754902,121660.0,121650.0,0.19443]
[1755108100680,0.01754902,121660.0,121650.0,0.53443]
[1755108101417,0.01754902,121660.0,121650.0,0.858419]
[1755108101641,0.01754902,121660.0,121650.0,0.80622343]
[1755108101846,0.01754902,121660.0,121650.0,0.91611443]
[1755108102360,0.0001,121660.0,121650.0,0.57611443]
[1755108102575,0.0001,121660.0,121650.0,0.14223443]
[1755108102839,0.0001,121660.0,121650.0,0.05975]
[1755108103050,0.0001,121660.0,121650.0,0.19423]
[1755108104132,0.0001,121660.0,121650.0,0.05975]
[1755108104349,0.0001,121660.0,121650.0,0.19419]
[1755108105732,0.0001,121660.0,121650.0,0.05975]
[1755108105967,0.0001,121660.0,121650.0,0.066025]
[1755108106280,0.0001,121660.0,121650.0,0.200305]
[1755108107575,0.0001,121660.0,121650.0,0.200225]
[1755108108232,0.0001,121660.0,121650.0,0.066025]
[1755108108858,0.0001,121660.0,121650.0,0.200145]
[1755108111318,0.0001,121660.0,121650.0,0.200185]
[1755108111503,0.0001,121660.0,121650.0,0.499505]
[1755108112021,0.0001,121660.0,121650.0,0.499465]
[1755108112253,0.0001,121660.0,121650.0,0.397025]
[1755108112914,0.55736901,121660.0,121650.0,0.019455]
[1755108113151,0.10225227,121660.0,121650.0,0.14216]
[1755108113411,0.55582547,121660.0,121650.0,0.14212]
[1755108113873,0.55582547,121660.0,121650.0,0.008]
[1755108114098,0.55582547,121660.0,121650.0,0.14208]
[1755108114325,0.10225227,121660.0,121650.0,0.14208]
[1755108114547,0.55736901,121660.0,121650.0,0.156901]
[1755108114773,0.10225227,121660.0,121650.0,0.160031]
[1755108114997,0.55736901,121660.0,121650.0,0.160031]
[1755108115190,0.10225227,121660.0,121650.0,0.160031]
[1755108115451,0.55736901,121660.0,121650.0,0.160031]
[1755108115661,0.55384547,121660.0,121650.0,0.162081]
[1755108116294,0.55384547,121660.0,121650.0,0.028001]
[1755108116497,0.10027227,121660.0,121650.0,0.1473]
[1755108116714,0.55538901,121660.0,121650.0,0.1473]
[1755108116953,0.55384547,121660.0,121650.0,0.1473]
[1755108118197,0.10027227,121660.0,121650.0,0.1473]
[1755108118400,0.10181581,121660.0,121650.0,0.1473]
[1755108118744,0.55538901,121660.0,121650.0,0.16213]
[1755108118901,0.55384547,121660.0,121650.0,0.16213]
[1755108119315,0.10027227,121660.0,121650.0,0.16213]
[1755108119533,0.10181581,121660.0,121650.0,0.16213]
[1755108119959,0.55538901,121660.0,121650.0,0.16213]
[1755108120175,0.55384547,121660.0,121650.0,0.16213]
[1755108120574,0.10027227,121660.0,121650.0,0.16213]
[1755108120846,0.55538901,121660.0,121650.0,0.16213]
[1755108121040,0.55384547,121660.0,121650.0,0.16213]
[1755108121246,0.55582547,121660.0,121650.0,0.16213]
[1755108121453,0.55582547,121660.0,121650.0,0.26453]
[1755108121649,0.10225227,121660.0,121650.0,0.46145]
[1755108121886,0.55736901,121660.0,121650.0,0.46145]
[1755108122081,0.10027227,121660.0,121650.0,0.46145]
[1755108122275,0.10181581,121660.0,121650.0,0.46145]
[1755108122850,0.55538901,121660.0,121650.0,0.46145]
[1755108123056,0.55384547,121660.0,121650.0,0.46145]
[1755108126387,0.55384547,121660.0,121650.0,0.35905]
[1755108126712,0.55384547,121660.0,121650.0,0.16213]
[1755108126957,0.55384547,121660.0,121650.0,0.16418507]
[1755108129735,0.10027227,121660.0,121650.0,0.16378507]
[1755108129971,0.55384547,121660.0,121650.0,0.16173]
[1755108131164,0.10027227,121660.0,121650.0,0.16173]
[1755108131385,0.55384547,121660.0,121650.0,0.16173]
[1755108131583,0.55384547,121660.0,121650.0,0.46105]
[1755108132654,0.10027227,121660.0,121650.0,0.46105]
[1755108132868,0.55384547,121660.0,121650.0,0.46105]
[1755108133077,0.10027227,121660.0,121650.0,0.46105]
[1755108133325,0.55384547,121660.0,121650.0,0.35865]
[1755108133743,0.10027227,121660.0,121650.0,0.35865]
[1755108135890,0.55384547,121660.0,121650.0,0.35865]
[1755108136119,0.55384547,121660.0,121650.0,0.16141]
[1755108138199,0.10027227,121660.0,121650.0,0.16133]
[1755108138355,0.55384547,121660.0,121650.0,0.16133]
[1755108138729,0.10027227,121660.0,121650.0,0.16133]
[1755108139852,0.55384547,121660.0,121650.0,0.16133]
[1755108140979,0.10027227,121660.0,121650.0,0.16133]
[1755108141184,0.55384547,121660.0,121650.0,0.16133]
[1755108141530,0.55384547,121660.0,121650.0,0.46065]
[1755108142814,0.10027227,121660.0,121650.0,0.46065]
[1755108143018,0.55384547,121660.0,121650.0,0.22513]
[1755108143221,0.55384547,121660.0,121650.0,0.35797]
[1755108143417,0.55582547,121660.0,121650.0,0.35797]
[1755108144536,0.55582547,121660.0,121650.0,0.21995]
[1755108144753,0.55582547,121660.0,121650.0,0.35267]
[1755108146290,0.55582547,121660.0,121650.0,0.35566]
[1755108146495,0.55582547,121660.0,121650.0,0.15874]
[1755108147169,0.55582547,121660.0,121650.0,0.16079507]
[1755108149448,0.55582547,121660.0,121650.0,0.16292507]
[1755108150201,0.10027227,121660.0,121650.0,0.16292507]
[1755108150420,0.10027227,121660.0,121650.0,0.16426408]
[1755108150625,0.01754902,121660.0,121650.0,0.16220901]
[1755108150837,0.01754902,121660.0,121650.0,0.16426408]
[1755108151053,0.47112222,121660.0,121650.0,0.16426408]
[1755108151269,0.47112222,121660.0,121650.0,0.03174408]
[1755108151492,0.47309222,121660.0,121650.0,0.31244]
[1755108151705,0.47112222,121660.0,121650.0,0.44784]
[1755108153123,0.01754902,121660.0,121650.0,0.44784]
[1755108153326,0.47112222,121660.0,121650.0,0.44784]
[1755108153569,0.47112222,121660.0,121650.0,0.21004]
[1755108153912,0.47112222,121660.0,121650.0,0.17060301]
[1755108154682,0.01754902,121660.0,121650.0,0.17060301]
[1755108154887,0.47112222,121660.0,121650.0,0.17060301]
[1755108155710,0.01754902,121660.0,121650.0,0.17060301]
[1755108155972,0.47112222,121660.0,121650.0,0.03524301]
[1755108156144,0.47112222,121660.0,121650.0,0.14832]
[1755108157088,0.01754902,121660.0,121650.0,0.14832]
[1755108157272,0.47112222,121660.0,121650.0,0.01312]
[1755108157497,0.47112222,121660.0,121650.0,0.14828]
[1755108158372,0.01754902,121660.0,121650.0,0.14816]
[1755108158788,0.01754902,121660.0,121650.0,0.16363544]
[1755108158997,0.01754902,121660.0,121650.0,0.16359544]
[1755108159207,0.47112222,121660.0,121650.0,0.02859544]
[1755108159378,0.47112222,121660.0,121650.0,0.01312]
[1755108159615,0.47112222,121660.0,121650.0,0.14804]
[1755108160312,0.01754902,121660.0,121650.0,0.14804]
[1755108160524,0.47112222,121660.0,121650.0,0.14804]
[1755108161487,0.47112222,121660.0,121650.0,0.44736]
[1755108161698,0.47112222,121660.0,121650.0,0.49275544]
[1755108161909,0.47090441,121660.0,121650.0,0.49275544]
[1755108162510,0.01733121,121660.0,121650.0,0.25543544]
[1755108162698,0.01733121,121660.0,121650.0,0.34476]
[1755108165210,0.01733121,121660.0,121650.0,0.14784]
[1755108165427,0.01733121,121660.0,121650.0,0.14937901]
[1755108166739,0.01733121,121660.0,121650.0,0.01465901]
[1755108166960,0.01733121,121660.0,121650.0,0.01312]
[1755108167184,0.01733121,121660.0,121650.0,0.14756]
[1755108167413,0.02463,121680.0,121650.0,0.20572543]
[1755108167639,4.891e-05,121680.0,121660.0,0.00671365]
[1755108167860,0.45362211,121680.0,121670.0,0.1397]
[1755108168079,0.47107113,121680.0,121670.0,0.1397]
[1755108168288,0.01749793,121680.0,121670.0,0.13966]
[1755108168527,0.47107113,121680.0,121670.0,0.153626]
[1755108168743,0.01749793,121680.0,121670.0,0.019226]
[1755108168961,0.01749793,121680.0,121670.0,0.13998]
[1755108169177,0.47107113,121680.0,121670.0,0.13998]
[1755108169604,0.01749793,121680.0,121670.0,0.14098]
[1755108169817,0.47107113,121680.0,121670.0,0.14098]
[1755108170076,0.47107113,121680.0,121670.0,0.14102]
[1755108170305,0.47107113,121680.0,121670.0,0.15792215]
[1755108170481,0.47207113,121680.0,121670.0,0.15792215]
[1755108171587,0.01849793,121680.0,121670.0,0.46083538]
[1755108171868,0.47207113,121680.0,121670.0,0.45724215]
[1755108173750,0.47207113,121680.0,121670.0,0.35484215]
[1755108174697,0.47404113,121680.0,121670.0,0.35484215]
[1755108175770,0.47404113,121680.0,121670.0,0.15792215]
[1755108176550,0.02046793,121680.0,121670.0,0.15792215]
[1755108176966,0.47404113,121680.0,121670.0,0.15792215]
[1755108177769,0.02046793,121680.0,121670.0,0.15792215]
[1755108177960,0.47404113,121680.0,121670.0,0.15792215]
[1755108178715,0.47404113,121680.0,121670.0,0.15720215]
[1755108180520,1.01203758,121680.0,121670.0,0.01790215]
[1755108180727,1.01203758,121680.0,121670.0,0.13496]
[1755108180945,1.01203758,121680.0,121670.0,0.001]
[1755108181167,0.10319118,121680.0,121670.0,0.001]
[1755108181376,0.55676438,121680.0,121670.0,0.0064]
[1755108181596,0.55676438,121680.0,121670.0,0.4396]
[1755108181816,0.10319118,121680.0,121670.0,0.48356]
[1755108182246,0.55676438,121680.0,121670.0,0.4836]
[1755108182456,0.55479438,121680.0,121670.0,0.4836]
[1755108183508,0.55479438,121680.0,121670.0,0.38104]
[1755108184684,0.10122118,121680.0,121670.0,0.38104]
[1755108184914,0.55479438,121680.0,121670.0,0.38104]
[1755108185727,0.01849793,121680.0,121670.0,0.05036]
[1755108186083,0.47207113,121680.0,121670.0,0.14012]
[1755108186323,0.01849793,121680.0,121670.0,0.14012]
[1755108186589,0.47207113,121680.0,121670.0,0.0064]
[1755108186788,0.00104891,121680.0,121670.0,0.48012]
[1755108187023,0.00104891,121680.0,121670.0,0.435842]
[1755108187222,0.00104891,121680.0,121670.0,0.460465]
[1755108187427,0.01849793,121680.0,121670.0,0.594145]
[1755108187648,0.01749793,121680.0,121670.0,0.594145]
[1755108187848,0.017043,121700.0,121690.0,0.00150152]
[1755108188049,0.01709188,121700.0,121690.0,0.26824716]
[1755108188281,0.01709188,121700.0,121690.0,0.29201112]
[1755108188562,0.01709188,121700.0,121690.0,0.32555949]
[1755108188790,0.01709188,121700.0,121690.0,0.19187949]
[1755108188970,0.01709188,121700.0,121690.0,0.32563949]
[1755108189186,0.01709188,121700.0,121690.0,0.32571949]
[1755108189365,0.01709188,121700.0,121690.0,0.19187949]
[1755108189583,0.01709188,121700.0,121690.0,0.33271949]
[1755108189784,0.01709188,121700.0,121690.0,0.19887949]
[1755108189994,0.01709188,121700.0,121690.0,0.33271949]
[1755108190411,0.01709188,121700.0,121690.0,0.20729853]
[1755108190610,0.01709188,121700.0,121690.0,0.21029853]
[1755108191022,0.01709188,121700.0,121690.0,0.34417853]
[1755108191454,0.01709188,121700.0,121690.0,0.31265853]
[1755108191689,0.01709188,121700.0,121690.0,0.64337853]
[1755108192449,0.01709188,121700.0,121690.0,0.66047053]
[1755108193367,0.01709188,121700.0,121690.0,0.22739053]
[1755108194098,0.01709188,121700.0,121690.0,0.36107053]
[1755108194704,0.01709188,121700.0,121690.0,0.36099053]
[1755108195556,0.01709188,121700.0,121690.0,0.22739053]
[1755108195762,0.01709188,121700.0,121690.0,0.36103053]
[1755108195763,0.01689188,121700.0,121690.0,0.36103053]
[1755108196191,0.01689188,121700.0,121690.0,0.22739053]
[1755108196407,0.01689188,121700.0,121690.0,0.36115053]
[1755108197051,0.01689188,121700.0,121690.0,0.22739053]
[1755108197257,0.01689188,121700.0,121690.0,0.36115053]
[1755108199284,0.01689188,121700.0,121690.0,0.22739053]
[1755108199514,0.01689188,121700.0,121690.0,0.38510354]
[1755108200487,0.01689188,121700.0,121690.0,0.38570354]
[1755108200906,0.01689188,121700.0,121690.0,0.36151053]
[1755108201551,0.01689188,121700.0,121690.0,0.76307053]
[1755108201753,0.01689188,121700.0,121690.0,0.75465149]
[1755108202361,0.01689188,121700.0,121690.0,0.75477149]
[1755108202984,0.01689188,121700.0,121690.0,0.75581149]
[1755108203131,0.01689188,121700.0,121690.0,0.69321149]
[1755108203334,0.01689188,121700.0,121690.0,0.69349149]
[1755108205059,0.01689188,121700.0,121690.0,0.5831645]
[1755108205264,0.01689188,121700.0,121690.0,0.57270189]
[1755108205395,0.01689188,121700.0,121690.0,3.43967889]
[1755108205591,0.01689188,121700.0,121690.0,3.01466489]
[1755108205884,0.01689188,121700.0,121690.0,2.52658389]
[1755108206097,0.01689188,121700.0,121690.0,2.54876082]
[1755108206310,0.01689188,121700.0,121690.0,2.55983192]
[1755108206765,0.01689188,121700.0,121690.0,2.55683192]
[1755108206988,0.01689188,121700.0,121690.0,2.56183192]
[1755108207643,0.01689188,121700.0,121690.0,2.44565692]
[1755108207855,0.01689188,121700.0,121690.0,1.16143592]
[1755108208087,0.01689188,121700.0,121690.0,0.95971892]
[1755108208295,0.01689188,121700.0,121690.0,0.86370759]
[1755108208509,0.01689188,121700.0,121690.0,0.87802759]
[1755108208942,0.01689188,121700.0,121690.0,0.72892259]
[1755108209126,0.01689188,121700.0,121690.0,0.56904259]
[1755108209560,0.01886188,121700.0,121690.0,0.18221259]
[1755108209776,0.01886188,121700.0,121690.0,0.24855677]
[1755108209995,0.02056188,121700.0,121690.0,0.23146477]
[1755108210271,0.01689188,121700.0,121690.0,0.10435774]
[1755108210487,0.01689188,121700.0,121690.0,0.23979774]
[1755108210930,0.01903188,121700.0,121690.0,0.23979774]
[1755108211143,0.01903188,121700.0,121690.0,0.13091911]
[1755108211352,0.01903188,121700.0,121690.0,0.23979774]
[1755108211573,0.01689188,121700.0,121690.0,0.74359774]
[1755108211814,0.01689188,121700.0,121690.0,0.87895774]
[1755108212049,0.01689188,121700.0,121690.0,0.61966774]
[1755108212300,0.01689188,121700.0,121690.0,0.61974774]
[1755108212527,0.01689188,121700.0,121690.0,0.71168411]
[1755108212767,0.01689188,121700.0,121690.0,0.71368411]
[1755108212999,0.01689188,121700.0,121690.0,0.57824411]
[1755108213243,0.01689188,121700.0,121690.0,0.68872411]
[1755108213482,0.01689188,121700.0,121690.0,0.55124411]
[1755108213720,0.01689188,121700.0,121690.0,0.68868411]
[1755108214408,0.01689188,121700.0,121690.0,1.73068204]
[1755108215091,0.01689188,121700.0,121690.0,1.72786571]
[1755108215549,0.01689188,121700.0,121690.0,1.72822571]
[1755108216482,0.01689188,121700.0,121690.0,1.72882571]
[1755108216769,0.01689188,121700.0,121690.0,1.57024878]
[1755108216991,0.01689188,121700.0,121690.0,1.68477011]
[1755108217210,0.01689188,121700.0,121690.0,1.70688878]
[1755108217650,0.01689188,121700.0,121690.0,1.54837011]
[1755108217909,0.01689188,121700.0,121690.0,1.01716311]
[1755108218159,0.01689188,121700.0,121690.0,0.87610211]
[1755108218408,0.01689188,121700.0,121690.0,0.57824411]
[1755108218873,0.01689188,121700.0,121690.0,0.69004411]
[1755108219100,0.01689188,121700.0,121690.0,1.19516811]
[1755108219332,0.01689188,121700.0,121690.0,1.17016811]
[1755108219569,0.01689188,121700.0,121690.0,1.19604811]
[1755108220021,0.01689188,121700.0,121690.0,1.52473811]
[1755108220483,0.01689188,121700.0,121690.0,1.38693811]
[1755108220705,0.01689188,121700.0,121690.0,1.24090311]
[1755108220941,0.01689188,121700.0,121690.0,1.04681511]
[1755108221175,0.01689188,121700.0,121690.0,1.18742711]
[1755108221419,0.01689188,121700.0,121690.0,1.04962711]
[1755108221638,0.01689188,121700.0,121690.0,1.48642711]
[1755108222130,0.01689188,121700.0,121690.0,1.26856404]
[1755108222353,0.01689188,121700.0,121690.0,1.42136842]
[1755108222589,0.01689188,121700.0,121690.0,1.40624404]
[1755108223517,0.01689188,121700.0,121690.0,1.42136842]
[1755108223940,0.01689188,121700.0,121690.0,1.41608349]
[1755108224164,0.01689188,121700.0,121690.0,1.40095911]
[1755108225726,0.01689188,121700.0,121690.0,1.06651911]
[1755108225878,0.01689188,121700.0,121690.0,1.18410911]
[1755108226089,0.01689188,121700.0,121690.0,1.17038911]
[1755108226301,0.01689188,121700.0,121690.0,1.02453411]
[1755108226498,0.01689188,121700.0,121690.0,1.16193411]
[1755108226704,0.01689188,121700.0,121690.0,1.16189411]
[1755108228269,0.01689188,121700.0,121690.0,1.16185411]
[1755108229023,0.01689188,121700.0,121690.0,0.99615611]
[1755108229254,0.01689188,121700.0,121690.0,0.99465459]
[1755108229501,0.01689188,121700.0,121690.0,0.85899611]
[1755108229946,0.01689188,121700.0,121690.0,0.99611611]
[1755108230532,0.01689188,121700.0,121690.0,1.02111611]
[1755108230965,0.01689188,121700.0,121690.0,0.99611611]
[1755108231160,0.01689188,121700.0,121690.0,0.99607611]
[1755108231575,0.01689188,121700.0,121690.0,1.39747611]
[1755108232085,0.01689188,121700.0,121690.0,1.26039611]
[1755108232298,0.01689188,121700.0,121690.0,1.42247611]
[1755108232516,0.01689188,121700.0,121690.0,1.21783611]
[1755108233361,0.01689188,121700.0,121690.0,0.85899611]
[1755108233580,0.01689188,121700.0,121690.0,0.99591611]
[1755108234184,0.01689188,121700.0,121690.0,1.02091611]
[1755108234617,0.01689188,121700.0,121690.0,0.99591611]
[1755108234845,0.01689188,121700.0,121690.0,1.02091611]
[1755108235792,0.01689188,121700.0,121690.0,0.85899611]
[1755108235996,0.01689188,121700.0,121690.0,0.99587611]
[1755108237016,0.01689188,121700.0,121690.0,0.85899611]
[1755108237187,0.01689188,121700.0,121690.0,0.99579611]
[1755108237398,0.01689188,121700.0,121690.0,0.99575611]
[1755108239753,0.01689188,121700.0,121690.0,1.02075611]
[1755108240163,0.01689188,121700.0,121690.0,2.21451304]
[1755108240374,0.01689188,121700.0,121690.0,2.57352704]
[1755108240772,0.01689188,121700.0,121690.0,2.57340704]
[1755108241132,0.01689188,121700.0,121690.0,2.55288576]
[1755108241343,0.01689188,121700.0,121690.0,2.56767269]
[1755108241545,0.01689188,121700.0,121690.0,2.97307269]
[1755108241749,0.01689188,121700.0,121690.0,2.87075269]
[1755108242361,0.01689188,121700.0,121690.0,2.76843269]
[1755108242625,0.01689188,121700.0,121690.0,2.57167269]
[1755108242913,0.01689188,121700.0,121690.0,2.57980071]
[1755108243446,0.01689188,121700.0,121690.0,2.57960071]
[1755108243654,0.01689188,121700.0,121690.0,2.55294516]
[1755108244282,0.01689188,121700.0,121690.0,2.54481714]
[1755108244715,0.01689188,121700.0,121690.0,2.55536664]
[1755108244923,0.01689188,121700.0,121690.0,1.02874314]
[1755108245134,0.01689188,121700.0,121690.0,1.16482314]
[1755108245350,0.01689188,121700.0,121690.0,1.02874314]
[1755108245557,0.01689188,121700.0,121690.0,1.16490314]
[1755108245773,0.01689188,121700.0,121690.0,1.14801079]
[1755108246194,0.01689188,121700.0,121690.0,1.03534927]
[1755108246420,0.01689188,121700.0,121690.0,1.14075079]
[1755108246636,0.01689188,121700.0,121690.0,1.11575079]
[1755108247091,0.01689188,121700.0,121690.0,0.97959079]
[1755108247302,0.01689188,121700.0,121690.0,0.86097079]
[1755108247478,0.01887188,121700.0,121690.0,0.85585079]
[1755108247732,0.01887188,121700.0,121690.0,0.99185079]
[1755108249240,0.01887188,121700.0,121690.0,0.99034927]
[1755108249443,0.01887188,121700.0,121690.0,0.99185079]
[1755108250209,0.01887188,121700.0,121690.0,0.99694079]
[1755108251238,0.01887188,121700.0,121690.0,0.98994079]
[1755108251454,0.01887188,121700.0,121690.0,1.18949079]
[1755108251670,0.01887188,121700.0,121690.0,1.28993079]
[1755108252349,0.01887188,121700.0,121690.0,1.28977079]
[1755108253010,0.01887188,121700.0,121690.0,1.18745079]
[1755108253218,0.01887188,121700.0,121690.0,1.18594927]
[1755108253426,0.01887188,121700.0,121690.0,1.18745079]
[1755108253630,0.01887188,121700.0,121690.0,0.99069079]
[1755108254069,0.01887188,121700.0,121690.0,0.85485079]
[1755108254283,0.01887188,121700.0,121690.0,0.99077079]
[1755108254804,0.01887188,121700.0,121690.0,0.99586079]
[1755108255019,0.01887188,121700.0,121690.0,0.85485079]
[1755108255218,0.01887188,121700.0,121690.0,0.51485079]
[1755108255519,0.01887188,121700.0,121690.0,0.65073079]
[1755108256019,0.01887188,121700.0,121690.0,0.64469079]
[1755108256222,0.01887188,121700.0,121690.0,0.64069079]
[1755108256444,0.01887188,121700.0,121690.0,0.50585079]
[1755108256660,0.01887188,121700.0,121690.0,0.64165079]
[1755108258617,0.01887188,121700.0,121690.0,0.50585079]
[1755108258830,0.01887188,121700.0,121690.0,0.64149079]
[1755108261525,0.01887188,121700.0,121690.0,1.04289079]
[1755108262071,0.01887188,121700.0,121690.0,0.80801079]
[1755108262313,0.01887188,121700.0,121690.0,0.94566079]
[1755108262499,0.01689188,121700.0,121690.0,0.94699884]
[1755108262703,0.01689188,121700.0,121690.0,0.94845689]
[1755108263325,0.01689188,121700.0,121690.0,1.28554079]
[1755108263578,0.01689188,121700.0,121690.0,0.85385689]
[1755108263796,0.01689188,121700.0,121690.0,0.98929689]
[1755108264233,0.01689188,121700.0,121690.0,0.98925689]
[1755108267286,0.01689188,121700.0,121690.0,0.98634079]
[1755108268876,0.01689188,121700.0,121690.0,0.85094079]
[1755108269082,0.01689188,121700.0,121690.0,0.98586079]
[1755108269905,0.01689188,121700.0,121690.0,1.17710911]
[1755108271528,0.01689188,121700.0,121690.0,1.47622911]
[1755108273413,0.01689188,121700.0,121690.0,1.37390911]
[1755108273681,0.01689188,121700.0,121690.0,1.04218911]
[1755108273903,0.01689188,121700.0,121690.0,1.17678911]
[1755108276424,0.01689188,121700.0,121690.0,1.04218911]
[1755108276653,0.01689188,121700.0,121690.0,1.17658911]
[1755108277063,0.01689188,121700.0,121690.0,1.04513585]
[1755108277283,0.01689188,121700.0,121690.0,1.18715313]
[1755108277527,0.01689188,121700.0,121690.0,1.63968657]
[1755108278359,0.01689188,121700.0,121690.0,1.44843825]
[1755108278808,0.01689188,121700.0,121690.0,1.44074097]
[1755108279016,0.01689188,121700.0,121690.0,1.43779423]
[1755108279481,0.01689188,121700.0,121690.0,1.62845929]
[1755108280406,0.01689188,121700.0,121690.0,1.49413929]
[1755108280668,0.01887188,121700.0,121690.0,1.62825929]
[1755108280864,0.01887188,121700.0,121690.0,1.62821929]
[1755108281499,0.01887188,121700.0,121690.0,1.83285929]
[1755108281713,0.01887188,121700.0,121690.0,1.57712585]
[1755108281930,0.01887188,121700.0,121690.0,2.02965929]
[1755108283714,0.01887188,121700.0,121690.0,1.34072585]
[1755108283918,0.01887188,121700.0,121690.0,1.81976929]
[1755108284477,0.01887188,121700.0,121690.0,1.48904929]
[1755108284697,0.01887188,121700.0,121690.0,1.17039585]
[1755108284904,0.01887188,121700.0,121690.0,1.03651585]
[1755108285157,0.02057188,121700.0,121690.0,1.28292929]
[1755108285379,0.01887188,121700.0,121690.0,1.62292929]
[1755108285611,0.01887188,121700.0,121690.0,1.43226423]
[1755108285833,0.01887188,121700.0,121690.0,1.29838423]
[1755108286056,0.02057188,121700.0,121690.0,1.43226423]
[1755108286534,0.01887188,121700.0,121690.0,1.43226423]
[1755108286759,0.01887188,121700.0,121690.0,0.84585079]
[1755108286978,0.02057188,121700.0,121690.0,1.29838423]
[1755108287209,0.02057188,121700.0,121690.0,0.97965079]
[1755108287425,0.02057188,121700.0,121690.0,1.43218423]
[1755108287972,0.01887188,121700.0,121690.0,1.43218423]
[1755108288634,0.02057188,121700.0,121690.0,1.43218423]
[1755108288844,0.01887188,121700.0,121690.0,1.43218423]
[1755108289271,0.01887188,121700.0,121690.0,0.97965079]
[1755108289489,0.01887188,121700.0,121690.0,1.43218423]
[1755108289712,0.01887188,121700.0,121690.0,0.97965079]
[1755108290393,0.01887188,121700.0,121690.0,1.43218423]
[1755108290622,0.01887188,121700.0,121690.0,0.97957079]
[1755108291062,0.01887188,121700.0,121690.0,1.43210423]
[1755108291272,0.01887188,121700.0,121690.0,1.43533423]
[1755108291455,0.01887188,121700.0,121690.0,1.18744079]
[1755108291695,0.01887188,121700.0,121690.0,1.83677423]
[1755108291904,0.01887188,121700.0,121690.0,1.83354423]
[1755108292115,0.01887188,121700.0,121690.0,1.59750423]
[1755108292327,0.01689188,121700.0,121690.0,1.63408423]
[1755108292803,0.01689188,121700.0,121690.0,1.43720423]
[1755108293826,0.01689188,121700.0,121690.0,1.49422929]
[1755108294065,0.01689188,121700.0,121690.0,1.66963929]
[1755108295558,0.01689188,121700.0,121690.0,1.21710585]
[1755108295785,0.01689188,121700.0,121690.0,1.66963929]
[1755108295985,0.01689188,121700.0,121690.0,1.21710585]
[1755108296188,0.01689188,121700.0,121690.0,1.21738585]
[1755108296390,0.01689188,121700.0,121690.0,1.66991929]
[1755108296812,0.01689188,121700.0,121690.0,1.53599929]
[1755108297305,0.01689188,121700.0,121690.0,1.62806929]
[1755108297526,0.01859188,121700.0,121690.0,1.48904929]
[1755108298270,0.01859188,121700.0,121690.0,1.49099929]
[1755108298484,0.01859188,121700.0,121690.0,1.48904929]
[1755108298690,0.01859188,121700.0,121690.0,1.43214423]
[1755108299313,0.01859188,121700.0,121690.0,0.97961079]
[1755108299551,0.01859188,121700.0,121690.0,1.43214423]
[1755108299943,0.01859188,121700.0,121690.0,1.43529423]
[1755108300155,0.01859188,121700.0,121690.0,1.29838423]
[1755108300400,0.01859188,121700.0,121690.0,0.97961079]
[1755108300669,0.01859188,121700.0,121690.0,0.50434927]
[1755108300670,0.47112532,121700.0,121690.0,0.50434927]
[1755108300895,0.48857434,121700.0,121690.0,0.40662837]
[1755108301145,0.48857434,121700.0,121690.0,0.017892]
[1755108301378,0.51207282,121700.0,121690.0,0.1348]
[1755108301670,0.05953938,121700.0,121690.0,0.43392]
[1755108301881,0.59649607,121700.0,121690.0,0.30012]
[1755108302359,1.04902951,121700.0,121690.0,0.3308]
[1755108302577,0.59649607,121700.0,121690.0,0.3308]
[1755108302797,0.59749607,121700.0,121690.0,0.36388]
[1755108303013,0.01744902,121680.0,121650.0,0.003]
[1755108303229,0.00198,121660.0,121650.0,0.42572325]
[1755108303677,0.00198,121660.0,121650.0,0.88341669]
[1755108303888,0.01914902,121680.0,121650.0,1.01745669]
[1755108304105,0.01744902,121680.0,121670.0,0.34]
[1755108304331,0.9245759,121680.0,121650.0,0.08548443]
[1755108304555,0.57826419,121680.0,121660.0,4.891e-05]
[1755108304790,0.00317354,121670.0,121660.0,4.891e-05]
[1755108304996,0.00317354,121670.0,121650.0,0.003]
[1755108304997,0.12684429,121670.0,121650.0,0.003]
[1755108305209,0.10785173,121660.0,121650.0,0.003]
[1755108305472,0.12730075,121660.0,121650.0,0.003]
[1755108305691,0.15384429,121660.0,121650.0,0.003]
[1755108305915,1.03944907,121660.0,121650.0,0.003]
[1755108306137,1.03790553,121660.0,121650.0,0.003]
[1755108306369,1.03790553,121660.0,121650.0,0.1396]
[1755108306589,1.03790553,121660.0,121650.0,0.1376]
[1755108307025,1.03990553,121660.0,121650.0,0.13768]
[1755108307232,0.15230075,121660.0,121650.0,0.13768]
[1755108307479,0.59810314,121660.0,121650.0,0.151748]
[1755108307708,0.59810314,121660.0,121650.0,0.13768]
[1755108307976,0.59810314,121660.0,121650.0,0.13772]
[1755108308166,0.15730075,121660.0,121650.0,0.1378]
[1755108308381,0.60010314,121660.0,121650.0,0.003]
[1755108308598,0.60010314,121660.0,121650.0,0.13784]
[1755108308822,0.60010314,121660.0,121650.0,0.003]
[1755108309289,0.15730075,121660.0,121650.0,0.003]
[1755108309492,0.60010314,121660.0,121650.0,0.003]
[1755108310188,0.0409475,121650.0,121640.0,0.003]
[1755108310411,1.03945907,121650.0,121640.0,0.003]
[1755108310620,0.15231075,121650.0,121640.0,0.13836]
[1755108310835,1.03945907,121650.0,121640.0,0.13836]
[1755108311047,1.37791553,121650.0,121640.0,0.003]
[1755108311288,0.49231075,121650.0,121640.0,0.003]
[1755108311515,1.37791553,121650.0,121640.0,0.43776]
[1755108312160,0.91361466,121650.0,121640.0,0.30232]
[1755108312373,0.93711314,121650.0,121640.0,0.43776]
[1755108312591,0.91561466,121650.0,121640.0,0.43776]
[1755108312802,0.94025466,121650.0,121640.0,0.43776]
[1755108313043,0.96175314,121650.0,121640.0,0.43776]
[1755108313228,1.04523757,121650.0,121640.0,0.43776]
[1755108313438,1.40555553,121650.0,121640.0,0.43776]
[1755108313648,1.43340864,121650.0,121640.0,0.19992]
[1755108313860,1.43340864,121650.0,121640.0,0.33544]
[1755108315470,1.43340864,121650.0,121640.0,0.19992]
[1755108315684,1.43340864,121650.0,121640.0,0.33544]
[1755108315917,1.43340864,121650.0,121640.0,0.003]
[1755108316094,1.43340864,121650.0,121640.0,0.13852]
[1755108316681,0.92330412,121650.0,121640.0,0.003]
[1755108316914,0.55980564,121650.0,121640.0,0.13856]
[1755108317118,0.62575314,121650.0,121640.0,0.13856]
[1755108317248,0.60075314,121650.0,121640.0,0.003]
[1755108317468,0.59917314,121650.0,121640.0,0.003]